bitfinex/quotes_ETHUSD_20220202
["timestamp","ask_amount","ask_price","bid_price","bid_amount"]
[1643826619559,0.19000842,2678.6,2678.5,7.78911502]
[1643826619759,0.19000842,2678.6,2678.5,9.28911502]
[1643826619958,0.37913165,2678.6,2678.5,9.28911502]
[1643826620160,0.00542704,2678.9,2678.5,9.28911502]
[1643826620161,0.00542704,2678.9,2678.7,1.86617]
[1643826620361,0.00542704,2678.9,2678.8,7.66489547]
[1643826620563,0.00542704,2678.9,2678.8,8.03566336]
[1643826620765,0.00493453,2678.9,2678.8,9.33566336]
[1643826620966,0.00493453,2678.9,2678.8,16.06566336]
[1643826621166,0.02248157,2679.6,2678.9,5.5]
[1643826621167,0.01973318,2679.6,2678.9,5.5]
[1643826621423,0.00274839,2679.9,2678.8,16.68299547]
[1643826621424,0.00274839,2679.9,2679.3,0.93284]
[1643826621617,0.00274839,2679.9,2679.6,6.73]
[1643826621816,1.58528852,2680.3,2679.8,0.18676]
[1643826622015,1.58254013,2680.2,2679.9,0.538]
[1643826622215,0.00274839,2680.3,2680.2,0.19302748]
[1643826622416,0.00274839,2680.5,2680.2,0.18441402]
[1643826622618,0.00274839,2680.5,2680.2,0.538]
[1643826622916,0.00274839,2680.5,2680.2,1.47075]
[1643826622917,0.70819548,2680.4,2680.2,1.47075]
[1643826623521,2.29067614,2680.3,2680.2,0.538]
[1643826623718,2.51886405,2680.3,2679.6,0.538]
[1643826623916,1.58248066,2680.2,2679.6,0.538]
[1643826624116,2.2900261,2680.2,2679.6,1.47098]
[1643826624318,1.58248066,2680.1,2679.6,1.47098]
[1643826624517,1.58248066,2680.0,2679.6,0.538]
[1643826624718,0.70754544,2680.0,2679.5,0.00521385]
[1643826625563,0.1812623,2679.6,2679.5,0.00521324]
[1643826625764,1.58248066,2679.6,2679.5,0.00521324]
[1643826625964,1.58248066,2679.8,2679.5,0.00521324]
[1643826626564,1.58248066,2679.8,2679.3,4.5699]
[1643826626763,1.58248066,2679.8,2679.5,0.00544085]
[1643826626764,1.58248066,2679.7,2679.5,0.00544085]
[1643826627164,1.58248066,2679.7,2679.5,1.87144915]
[1643826627366,1.58248066,2679.7,2679.5,3.73727915]
[1643826627663,1.58248066,2679.7,2679.5,3.7318383]
[1643826627865,1.58248066,2679.6,2679.5,3.7318383]
[1643826628065,1.58248066,2679.6,2679.5,3.73727909]
[1643826628267,0.00544025,2679.7,2679.5,4.57527909]
[1643826629011,1.58269638,2679.6,2679.5,4.57527909]
[1643826630218,1.58269638,2679.6,2679.5,4.5698383]
[1643826631113,0.00542706,2679.7,2679.5,4.5698383]
[1643826631318,1.58270489,2679.6,2679.5,4.5698383]
[1643826632963,0.00526615,2679.7,2679.5,4.5698383]
[1643826633165,1.58271296,2679.6,2679.5,4.5698383]
[1643826634162,0.00505457,2679.7,2679.5,4.5698383]
[1643826634362,1.58269414,2679.6,2679.5,4.5698383]
[1643826634768,1.58269129,2679.6,2679.5,4.5698383]
[1643826635163,0.00505457,2679.7,2679.5,4.57079447]
[1643826635363,1.58269544,2679.6,2679.5,4.57079447]
[1643826635563,0.00505457,2679.7,2679.5,4.57079447]
[1643826635764,1.58269469,2679.6,2679.5,4.57079447]
[1643826636163,0.00505457,2679.7,2679.5,4.57079447]
[1643826636619,0.00501519,2679.7,2679.5,4.57079447]
[1643826637712,0.00501519,2679.7,2679.5,4.5760441]
[1643826637713,0.00524911,2679.7,2679.5,4.5760441]
[1643826638719,0.00274839,2680.1,2679.5,4.5760441]
[1643826639013,0.00524911,2679.7,2679.5,4.5760441]
[1643826640016,0.01052713,2679.7,2679.5,4.58132264]
[1643826640258,0.01052713,2679.7,2679.5,4.57607301]
[1643826640259,0.00527802,2679.7,2679.5,4.57607301]
[1643826641460,0.00502596,2679.7,2679.5,4.03782094]
[1643826642461,0.00502596,2679.7,2679.5,4.04284741]
[1643826642660,0.00502596,2679.7,2679.5,4.03782094]
[1643826642866,0.00502596,2679.7,2679.6,7.97091]
[1643826643261,0.00502596,2679.7,2679.6,11.09461]
[1643826643464,0.02009882,2680.4,2679.7,5.5]
[1643826643664,0.00274839,2680.7,2679.9,5.5]
[1643826643915,0.00274839,2680.7,2680.6,1.0911542]
[1643826644113,1.58219088,2680.8,2680.6,0.33595041]
[1643826644313,0.00274839,2680.9,2680.7,0.71625105]
[1643826644715,1.58215397,2681.0,2680.8,0.18676]
[1643826644928,0.00274839,2681.2,2680.9,0.538]
[1643826645116,1.58472099,2681.6,2680.9,2.97031]
[1643826645315,1.58472099,2681.6,2681.0,1.0]
[1643826645517,1.58472099,2681.6,2681.1,0.538]
[1643826645716,1.58472099,2681.6,2681.4,0.17830212]
[1643826645918,1.5819726,2681.5,2681.4,0.17830212]
[1643826646119,1.5819726,2681.5,2681.4,1.11055212]
[1643826646317,0.00274839,2681.8,2681.4,1.11055212]
[1643826646518,1.5819726,2681.9,2681.4,1.11055212]
[1643826646718,1.5819726,2681.9,2681.4,0.93225]
[1643826646916,1.5819726,2681.9,2681.4,1.86451]
[1643826647123,1.5819726,2681.9,2681.4,2.796762]
[1643826647518,0.00324837,2681.8,2681.4,2.796762]
[1643826647980,0.00324837,2681.8,2681.5,0.538]
[1643826648178,0.00324837,2681.8,2681.5,0.72476]
[1643826648378,0.00324837,2681.8,2681.5,2.02476]
[1643826648780,0.00561985,2681.7,2681.6,7.36402]
[1643826648981,0.02522443,2682.1,2681.7,3.3]
[1643826648982,0.02247604,2682.1,2681.7,3.3]
[1643826649280,0.02247604,2682.1,2681.8,1.76989]
[1643826649480,0.02247604,2682.1,2681.8,2.76989]
[1643826649682,0.02247604,2682.1,2682.0,2.73632]
[1643826649882,0.00274839,2682.6,2682.1,1.8638]
[1643826650082,0.00274839,2682.6,2682.2,0.538]
[1643826650282,1.5815104,2682.7,2682.4,0.9318771]
[1643826650482,0.002751,2682.6,2682.4,1.4698771]
[1643826650683,0.002751,2682.6,2682.4,2.4017571]
[1643826650881,0.002751,2682.6,2682.5,1.23188]
[1643826651082,1.5842614,2682.8,2682.5,0.93188]
[1643826651284,1.5842614,2682.8,2682.4,0.538]
[1643826651514,1.5842614,2682.8,2682.4,0.838]
[1643826652115,0.00562474,2682.7,2682.4,0.838]
[1643826652318,1.5815104,2682.6,2682.4,0.838]
[1643826652515,1.5815104,2682.6,2682.5,0.16761293]
[1643826652715,1.5815104,2682.6,2682.4,0.838]
[1643826653116,1.5815104,2682.6,2682.4,2.67584366]
[1643826653317,0.002751,2682.8,2682.5,3.20522587]
[1643826653517,0.1862,2683.0,2682.5,3.20522587]
[1643826653518,0.00562483,2682.6,2682.5,1.18632]
[1643826653917,0.00562483,2682.6,2682.5,3.58632]
[1643826654116,0.00562483,2682.6,2682.5,4.51814]
[1643826654317,0.188951,2683.3,2682.5,5.05614]
[1643826654517,0.02249576,2683.1,2682.7,0.9317427]
[1643826654720,0.02249576,2683.1,2682.8,0.538]
[1643826654721,1.58134244,2683.0,2682.8,0.538]
[1643826655165,1.58134244,2683.0,2682.7,1.50048795]
[1643826655364,1.58134244,2683.0,2682.8,0.538]
[1643826655564,1.58134244,2683.0,2682.6,0.00095355]
[1643826655768,2.99242067,2682.9,2682.6,0.00095355]
[1643826655965,1.58134244,2682.8,2682.6,0.00095355]
[1643826656165,0.17643619,2682.7,2682.6,0.00095355]
[1643826656365,3.74578188,2682.7,2682.6,0.00095355]
[1643826656564,1.94397863,2682.7,2682.6,0.00095355]
[1643826657369,2.65152407,2682.7,2682.6,0.00095355]
[1643826657865,1.94397863,2682.7,2682.6,0.00095355]
[1643826658265,1.75777863,2682.7,2682.6,0.00095355]
[1643826661218,1.58134244,2682.7,2682.6,0.00095355]
[1643826664064,1.58134244,2682.7,2682.2,1.23197]
[1643826664065,1.58134244,2682.7,2682.0,2.41026148]
[1643826664266,0.17637402,2682.8,2682.0,2.41026148]
[1643826664267,0.002751,2682.6,2682.4,0.9318554]
[1643826664867,0.0047286,2682.8,2682.4,0.9318554]
[1643826665266,0.17223772,2683.0,2682.6,0.00082525]
[1643826665469,1.58115405,2682.9,2682.6,0.00082525]
[1643826665667,1.58115405,2682.9,2682.7,0.538]
[1643826666068,0.002751,2683.0,2682.7,0.538]
[1643826666271,1.58110878,2683.0,2682.7,0.538]
[1643826666521,0.002751,2683.3,2682.7,0.838]
[1643826666522,1.58110878,2682.9,2682.7,0.838]
[1643826666727,0.002751,2683.3,2682.7,0.838]
[1643826666728,1.58114998,2682.8,2682.7,0.838]
[1643826666921,1.58114998,2682.9,2682.7,0.838]
[1643826667324,0.78582931,2682.8,2682.7,0.538]
[1643826667523,1.58114998,2682.8,2682.7,0.838]
[1643826667723,0.20035094,2683.0,2682.7,0.838]
[1643826667922,1.5868039,2682.9,2682.7,0.838]
[1643826668126,0.00562393,2682.9,2682.7,0.838]
[1643826669022,0.01124786,2682.9,2682.7,0.838]
[1643826669223,0.00562393,2682.9,2682.7,0.838]
[1643826670023,0.002751,2683.1,2682.7,0.538]
[1643826670268,0.00562393,2682.9,2682.7,0.838]
[1643826670671,0.00562393,2682.9,2682.7,1.7697596]
[1643826671270,0.21845922,2683.3,2682.8,1.11807]
[1643826671271,0.002751,2683.3,2682.8,1.11807]
[1643826671477,0.002751,2683.3,2682.9,14.668]
[1643826671478,0.02249234,2683.3,2682.9,14.668]
[1643826671770,0.02249234,2683.3,2683.0,1.98632]
[1643826671969,0.02249234,2683.3,2683.2,6.73]
[1643826672169,0.02249234,2683.3,2683.2,7.568]
[1643826672370,0.02249234,2683.3,2683.2,9.66543387]
[1643826672773,0.00551956,2683.4,2683.2,9.68577]
[1643826673174,0.00551956,2683.4,2683.2,9.61719]
[1643826673372,0.00551956,2683.4,2683.3,4.28632]
[1643826673571,1.0774381,2683.5,2683.3,6.91787378]
[1643826673908,1.0774381,2683.5,2683.4,4.42330335]
[1643826674111,1.0774381,2683.5,2683.4,5.13728713]
[1643826674308,1.0774381,2683.5,2683.4,6.13728713]
[1643826674507,1.0774381,2683.5,2683.4,6.32360713]
[1643826675716,0.02166034,2684.0,2683.5,4.0813674]
[1643826675914,0.02166034,2684.0,2683.7,0.93138]
[1643826676111,0.02166034,2684.0,2683.8,2.62446616]
[1643826676312,8.8395,2685.1,2683.9,0.18632]
[1643826676313,0.1862,2684.7,2683.9,0.18632]
[1643826676511,1.58046271,2684.6,2684.0,0.538]
[1643826676711,1.58046271,2684.6,2683.8,2.38646616]
[1643826676910,1.58046271,2684.6,2684.1,0.538]
[1643826677312,1.58046271,2684.6,2684.1,0.838]
[1643826678365,1.58046271,2684.6,2684.1,0.538]
[1643826678366,0.1862,2684.5,2684.1,0.538]
[1643826678563,1.58046271,2684.4,2684.1,0.538]
[1643826679061,0.1862,2684.6,2684.1,0.538]
[1643826679062,1.58046271,2684.3,2684.1,0.538]
[1643826679261,1.58046271,2684.2,2684.1,0.538]
[1643826679462,0.1862,2684.6,2684.1,0.538]
[1643826679763,1.5804689,2684.5,2684.1,0.538]
[1643826679962,1.5804689,2684.5,2684.3,0.00081024]
[1643826681163,1.5860914,2684.5,2684.3,0.00081024]
[1643826681416,1.5804689,2684.4,2684.3,0.00081024]
[1643826681818,0.0056225,2684.5,2684.3,0.00081024]
[1643826682216,0.01124504,2684.5,2684.3,0.00081024]
[1643826682419,0.00562254,2684.5,2684.3,0.00081024]
[1643826683218,0.1862,2684.6,2684.3,0.00081024]
[1643826683418,1.58031993,2684.5,2684.3,0.00081024]
[1643826683721,1.58575267,2684.5,2684.3,0.00081024]
[1643826683918,1.58031993,2684.4,2684.3,0.00081024]
[1643826684118,1.58031993,2684.4,2683.9,1.64705993]
[1643826684317,1.58031993,2684.4,2684.0,0.538]
[1643826684517,0.00543274,2684.5,2684.0,0.538]
[1643826684719,0.01076152,2684.5,2684.0,0.538]
[1643826684918,0.00532878,2684.5,2684.0,0.838]
[1643826685159,0.00532878,2684.5,2684.4,0.00081106]
[1643826685560,1.58561571,2684.5,2684.4,0.00081106]
[1643826685962,1.58028693,2684.5,2684.4,0.00081106]
[1643826686965,1.58028693,2684.6,2684.4,0.00081106]
[1643826687167,1.58562554,2684.6,2684.4,0.00081106]
[1643826687366,1.58028693,2684.5,2684.4,0.00081106]
[1643826689609,0.71298805,2684.6,2683.8,0.1862]
[1643826689807,0.00274923,2684.4,2683.5,4.2635]
[1643826690008,1.58303616,2684.4,2683.5,4.2635]
[1643826690407,0.14355695,2683.9,2683.5,4.2635]
[1643826690609,1.58028693,2683.8,2683.5,4.2635]
[1643826690809,1.58028693,2683.8,2683.5,4.5635]
[1643826691207,1.58028693,2683.8,2683.5,4.2635]
[1643826691408,0.14630618,2683.9,2683.5,4.5635]
[1643826691807,0.14355695,2683.9,2683.5,4.5635]
[1643826692008,0.004972,2683.8,2683.5,5.49493]
[1643826692208,0.004972,2683.8,2683.7,0.931354]
[1643826692407,0.004972,2683.8,2683.5,5.49493]
[1643826692408,0.004972,2683.8,2683.5,4.5635]
[1643826693071,0.009944,2683.8,2683.5,4.5635]
[1643826693272,0.004972,2683.8,2683.5,4.5635]
[1643826694279,0.00995994,2683.8,2683.5,4.5635]
[1643826694474,0.00498794,2683.8,2683.5,4.5635]
[1643826695476,0.00501952,2683.8,2683.5,4.5635]
[1643826695681,0.00501952,2683.8,2683.7,2.93632]
[1643826695877,0.00501952,2683.8,2683.7,2.75]
[1643826696075,0.00501952,2683.8,2683.7,3.588]
[1643826696515,0.00274923,2684.3,2683.7,0.838]
[1643826696719,0.00501943,2683.9,2683.7,0.838]
[1643826697713,0.00274923,2684.3,2683.7,0.838]
[1643826697914,0.00509308,2683.9,2683.8,0.93141]
[1643826698315,0.00509308,2683.9,2683.8,1.23141]
[1643826698915,0.17607947,2684.2,2683.8,1.23141]
[1643826699115,0.17607947,2684.2,2683.7,0.538]
[1643826699116,0.00552888,2684.0,2683.7,0.538]
[1643826699315,0.00552888,2684.0,2683.7,0.838]
[1643826699520,1.58046011,2683.9,2683.7,0.838]
[1643826700362,1.58598903,2683.9,2683.7,0.838]
[1643826700562,1.58046011,2683.8,2683.7,0.838]
[1643826701367,0.00274923,2684.1,2683.7,0.838]
[1643826701570,0.00520837,2683.9,2683.7,0.838]
[1643826702767,0.00520834,2683.9,2683.7,0.838]
[1643826703467,1.58042926,2683.8,2683.7,0.838]
[1643826704014,0.00520834,2683.9,2683.7,0.838]
[1643826704216,0.00520834,2683.9,2683.5,2.87771115]
[1643826704217,1.58042705,2683.8,2683.5,2.87771115]
[1643826704421,1.58042705,2683.8,2683.6,0.538]
[1643826705117,1.58565118,2683.8,2683.6,0.538]
[1643826705320,0.00522413,2683.8,2683.6,0.538]
[1643826705918,0.00522413,2683.8,2683.6,1.4694348]
[1643826706119,0.01531415,2684.3,2683.7,0.3]
[1643826706319,0.01531415,2684.3,2683.7,0.838]
[1643826706320,0.00477084,2683.8,2683.7,0.838]
[1643826706721,1.5851919,2683.8,2683.7,0.838]
[1643826707521,1.58042106,2683.8,2683.7,0.838]
[1643826710079,0.00480727,2683.9,2683.8,2.25]
[1643826710286,1.85624544,2684.6,2683.8,2.25]
[1643826710287,0.1862,2684.8,2684.0,5.5]
[1643826710482,0.00274973,2684.2,2684.1,2.18632]
[1643826710679,0.00274973,2684.2,2684.1,8.45432]
[1643826710879,0.70754544,2685.2,2684.2,5.5027]
[1643826711084,0.70583245,2685.6,2685.1,11.04205026]
[1643826711281,0.1911,2686.2,2685.5,6.74243079]
[1643826711523,2.9678806,2686.7,2686.1,6.73]
[1643826711524,0.005,2686.6,2686.1,6.73]
[1643826711720,0.005,2686.6,2686.2,7.268]
[1643826711922,0.005,2686.6,2686.3,0.538]
[1643826712121,0.01,2686.8,2686.6,2.5]
[1643826712323,2.33533956,2687.1,2686.7,0.543]
[1643826712523,0.186,2687.3,2686.7,0.843]
[1643826712720,1.8804425,2687.6,2686.7,0.843]
[1643826712922,0.186,2687.5,2686.7,2.02932]
[1643826713123,1.05396334,2687.9,2687.2,0.93025]
[1643826713320,0.186,2687.9,2687.3,0.538]
[1643826713522,0.186,2687.9,2687.3,7.273]
[1643826713523,0.02094608,2687.7,2687.3,7.273]
[1643826713722,0.14218792,2688.0,2687.4,0.005]
[1643826713922,2.0645425,2688.2,2687.5,0.538]
[1643826714120,1.0,2687.9,2687.5,0.538]
[1643826714325,3.9,2687.7,2687.2,0.538]
[1643826714522,0.186,2687.6,2686.5,0.538]
[1643826714723,0.37274,2687.6,2686.5,0.538]
[1643826715171,0.72682055,2686.8,2686.5,0.538]
[1643826715372,0.72682055,2686.8,2686.2,0.538]
[1643826715972,0.186,2686.7,2685.9,0.538]
[1643826716172,0.186,2686.7,2686.5,0.00219015]
[1643826716372,4.05105607,2686.6,2686.5,0.00219015]
[1643826716574,4.23705607,2686.6,2686.5,0.00219015]
[1643826717171,5.42379607,2686.6,2686.4,0.00219023]
[1643826717373,4.586,2686.5,2686.4,0.00219023]
[1643826718176,3.586,2686.5,2685.4,3.3146]
[1643826718376,3.586,2686.5,2686.3,0.0053813]
[1643826718778,5.4,2686.4,2686.3,0.0053813]
[1643826719230,5.77274,2686.4,2685.0,0.724]
[1643826719430,1.0,2686.2,2685.0,1.029]
[1643826719630,0.186,2686.3,2685.1,0.005]
[1643826720032,0.186,2686.3,2685.1,2.0]
[1643826720233,0.186,2686.5,2685.3,0.01247934]
[1643826720436,0.80182845,2686.2,2685.4,0.538]
[1643826720632,0.186,2686.5,2685.6,0.15718237]
[1643826720835,0.186,2686.5,2685.7,0.538]
[1643826721632,0.84848392,2686.3,2685.7,0.843]
[1643826722032,0.84848392,2686.3,2686.0,0.00530663]
[1643826722867,0.84848392,2686.3,2685.7,0.543]
[1643826723265,0.84848392,2686.3,2686.0,0.00503626]
[1643826724265,0.84848392,2686.3,2685.4,0.538]
[1643826724466,0.84848392,2686.3,2686.0,0.00503626]
[1643826725271,0.84848392,2686.3,2685.2,0.191]
[1643826725272,6.68674,2686.1,2685.2,0.191]
[1643826725468,6.2021587,2686.1,2684.9,0.191]
[1643826725678,6.2021587,2686.1,2684.9,0.186]
[1643826725871,0.186,2686.0,2684.9,0.186]
[1643826726071,0.67279408,2685.3,2684.9,0.186]
[1643826726619,0.0027535,2685.9,2684.9,0.186]
[1643826726820,1.0,2686.5,2684.7,0.538]
[1643826726821,0.0027535,2685.3,2684.8,0.186]
[1643826727220,0.0027535,2685.3,2684.8,0.191]
[1643826727421,0.0027535,2686.0,2684.8,2.28031552]
[1643826727620,0.0027535,2686.0,2685.2,0.17234528]
[1643826727621,0.16031535,2686.0,2685.2,0.17234528]
[1643826727821,0.0027535,2686.0,2685.2,0.17234528]
[1643826728022,0.0027535,2686.0,2685.2,0.71534528]
[1643826728328,0.0027535,2686.0,2685.2,1.94124588]
[1643826728522,0.0027535,2686.2,2685.4,2.7921093]
[1643826728723,0.0027535,2686.2,2685.5,0.305]
[1643826728922,0.0027535,2686.2,2685.6,2.97836]
[1643826729123,0.0027535,2686.6,2685.7,0.543]
[1643826729322,0.74157206,2686.4,2685.8,0.186]
[1643826729524,0.74157206,2686.4,2686.1,0.9307745]
[1643826729723,0.0027535,2686.3,2686.1,0.9307745]
[1643826730176,1.53238941,2686.3,2685.9,0.843]
[1643826730366,1.53238941,2686.3,2685.9,0.8432219]
[1643826731168,1.53238941,2686.3,2685.9,0.3052219]
[1643826731368,4.1044,2686.9,2685.8,0.18632]
[1643826731569,6.11798967,2687.4,2686.0,0.538]
[1643826731570,0.186,2687.0,2686.0,0.538]
[1643826731770,0.02017987,2686.8,2686.1,0.37232]
[1643826731967,0.02017987,2686.8,2686.4,0.93043]
[1643826732168,0.02017987,2686.8,2686.5,0.724]
[1643826732367,0.87387358,2686.6,2686.5,0.724]
[1643826732567,0.18610359,2686.7,2686.5,0.538]
[1643826733067,0.18610359,2686.7,2686.6,0.93063]
[1643826733570,0.79254281,2687.0,2686.6,0.93063]
[1643826734022,0.00275501,2687.2,2686.6,0.93063]
[1643826734023,0.00505216,2687.1,2686.6,0.93063]
[1643826734324,0.00275501,2687.0,2686.6,0.93063]
[1643826734522,0.19648459,2686.9,2686.2,0.186]
[1643826734722,0.19648459,2686.9,2686.2,1.8616615]
[1643826734723,0.38248459,2686.9,2686.2,1.8616615]
[1643826734928,1.98816326,2686.8,2686.2,1.8616615]
[1643826735122,1.97304907,2686.8,2685.9,0.01005443]
[1643826735323,0.16850695,2686.4,2685.9,0.00505443]
[1643826735522,0.00275501,2686.7,2685.9,0.00513596]
[1643826735925,0.186,2687.0,2685.9,0.00513596]
[1643826735926,0.00275501,2686.9,2685.9,0.00513596]
[1643826736127,0.186,2686.8,2685.9,0.00513596]
[1643826736422,0.00275501,2686.9,2685.9,0.00513596]
[1643826736624,0.186,2687.0,2686.2,0.9306276]
[1643826736625,0.00275501,2686.7,2686.2,0.9306276]
[1643826737223,0.02053524,2686.8,2686.3,0.538]
[1643826737867,0.00275501,2686.9,2686.3,0.838]
[1643826738467,0.15370638,2686.8,2686.3,0.838]
[1643826739769,0.15370638,2686.8,2686.0,0.186]
[1643826739969,0.15370638,2686.8,2686.2,0.3]
[1643826739970,0.00275501,2686.7,2686.2,0.3]
[1643826740169,0.00275501,2686.7,2685.9,2.89234017]
[1643826740570,0.00275501,2686.7,2686.1,0.93065]
[1643826740773,0.00275501,2686.7,2686.2,1.116995]
[1643826740974,0.01209925,2687.6,2686.4,0.01231538]
[1643826740975,0.00275501,2687.0,2686.4,0.01231538]
[1643826741174,0.00275501,2687.0,2686.5,0.724]
[1643826741433,2.186,2687.6,2686.9,0.01275273]
[1643826741434,0.186,2687.6,2686.9,0.01275273]
[1643826741625,0.186,2688.2,2687.7,0.9301]
[1643826741823,2.0,2688.7,2687.7,0.9301]
[1643826741824,0.19607851,2687.9,2687.8,2.938]
[1643826742023,0.19607851,2687.9,2687.8,0.538]
[1643826742424,0.8880587,2688.6,2687.8,0.838]
[1643826742624,0.00522997,2688.0,2687.8,0.838]
[1643826742826,0.00522997,2688.0,2687.9,5.8664]
[1643826743228,0.02091672,2688.4,2688.0,3.05]
[1643826743527,0.02091672,2688.4,2688.1,1.4678333]
[1643826743732,0.8981587,2689.1,2688.1,1.4678333]
[1643826743925,0.8881587,2689.1,2688.5,0.92986]
[1643826744128,0.7021587,2688.8,2687.8,0.71449341]
[1643826744326,0.7021587,2688.8,2687.6,2.39819]
[1643826744327,0.1859,2688.7,2687.6,2.39819]
[1643826744727,0.1859,2688.7,2687.6,3.88451]
[1643826744929,0.1859,2688.7,2687.9,1.85991]
[1643826745170,0.8988987,2689.1,2688.0,0.538]
[1643826745171,0.18247202,2688.6,2688.0,0.538]
[1643826745373,0.00275357,2688.6,2688.0,0.538]
[1643826745568,0.00275357,2688.6,2688.0,0.838]
[1643826745768,0.00275357,2688.8,2688.0,0.838]
[1643826745971,0.70491227,2688.8,2688.0,3.6279399]
[1643826746176,0.00275357,2688.8,2688.1,1.85985]
[1643826746373,0.18865357,2688.8,2688.1,1.85985]
[1643826746971,0.1859,2688.8,2688.1,1.85985]
[1643826747169,0.00275349,2688.7,2688.1,1.85985]
[1643826747371,0.90281579,2688.4,2688.1,1.85985]
[1643826747771,0.00520583,2688.6,2688.1,1.85985]
[1643826747973,0.20204974,2688.4,2688.1,1.85985]
[1643826748372,0.00520583,2688.6,2688.1,1.85985]
[1643826748572,0.00531545,2688.5,2688.1,1.85985]
[1643826749030,0.00531545,2688.5,2688.1,2.15985]
[1643826749227,0.00531545,2688.5,2688.2,0.538]
[1643826749429,0.00531545,2688.5,2688.3,2.20160242]
[1643826749624,0.00531545,2688.5,2688.3,2.73960242]
[1643826749825,0.00531545,2688.5,2688.3,1.76785]
[1643826750026,0.00531549,2688.4,2688.3,0.538]
[1643826750227,0.00531549,2688.4,2688.1,1.85985]
[1643826750427,0.00531549,2688.4,2688.3,1.8596738]
[1643826750826,0.00531549,2688.4,2688.1,1.85985]
[1643826751028,0.20153266,2688.4,2688.1,1.85985]
[1643826751228,0.2015327,2688.4,2688.1,1.85985]
[1643826751431,1.57813731,2688.3,2688.1,1.85985]
[1643826751634,0.01,2688.3,2688.1,1.85985]
[1643826751927,0.20428619,2688.4,2688.1,1.85985]
[1643826751928,0.00806902,2688.4,2688.1,1.85985]
[1643826752127,0.00531553,2688.4,2688.1,1.85985]
[1643826752328,0.00471841,2688.3,2688.1,1.85985]
[1643826753469,0.00471841,2688.3,2688.1,2.15985]
[1643826754471,0.00471841,2688.3,2688.2,4.288]
[1643826754970,0.00471841,2688.3,2688.2,0.538]
[1643826755774,0.00471841,2688.3,2688.2,5.06789]
[1643826756071,0.00480084,2688.4,2688.3,1.8596838]
[1643826756272,0.00480084,2688.4,2688.3,2.1596838]
[1643826756931,0.00480084,2688.4,2688.3,6.91554331]
[1643826757124,0.00480076,2688.5,2688.3,7.84541331]
[1643826757324,0.00480076,2688.5,2688.3,5.76317647]
[1643826757527,0.00480076,2688.5,2688.4,3.788]
[1643826757724,0.00480076,2688.5,2688.4,1.7913]
[1643826758327,0.00480068,2688.6,2688.5,0.92984]
[1643826758527,0.00480068,2688.6,2688.5,2.39769]
[1643826758528,1.58273258,2688.6,2688.5,2.39769]
[1643826758727,1.58273258,2688.6,2688.5,2.69769]
[1643826759329,0.01,2689.0,2688.5,3.69769]
[1643826759534,0.1859,2689.3,2688.5,3.69769]
[1643826759535,1.57774494,2688.9,2688.8,0.92979]
[1643826759730,0.02177182,2689.1,2688.8,1.22979]
[1643826759929,1.58774494,2689.0,2688.8,1.22979]
[1643826760171,1.57774494,2688.9,2688.8,1.22979]
[1643826760769,0.00544348,2689.0,2688.8,1.22979]
[1643826760967,0.14134348,2689.2,2688.8,1.22979]
[1643826761168,1.58048199,2689.1,2688.8,1.22979]
[1643826761367,1.59048199,2689.1,2688.8,1.22979]
[1643826761566,1.5877285,2689.0,2688.8,1.22979]
[1643826761768,0.15764348,2689.2,2688.8,1.22979]
[1643826761971,1.57773018,2689.1,2688.8,1.22979]
[1643826762176,1.58773018,2689.1,2688.7,2.7893776]
[1643826762368,1.57773018,2689.0,2688.4,2.128269]
[1643826762568,1.59048367,2689.0,2688.4,2.128269]
[1643826762767,1.59048367,2689.0,2688.4,2.428269]
[1643826762768,1.57773018,2688.9,2688.4,2.428269]
[1643826762967,1.58773018,2688.9,2688.4,2.428269]
[1643826763168,1.58773018,2688.8,2688.4,2.428269]
[1643826763371,1.7793473,2688.7,2688.4,2.128269]
[1643826763567,1.57773018,2688.6,2688.4,0.268489]
[1643826764420,1.57773018,2688.6,2688.3,0.45072914]
[1643826764619,1.58048367,2688.6,2688.3,0.45072914]
[1643826765220,0.1859,2689.1,2688.4,2.75]
[1643826765421,0.1859,2689.1,2688.4,4.6098577]
[1643826765624,0.00561077,2689.1,2688.4,4.6098577]
[1643826766122,0.00561077,2689.1,2688.3,0.00561262]
[1643826766330,0.1859,2689.0,2688.3,0.00561262]
[1643826766523,0.69058707,2688.4,2688.3,0.00561262]
[1643826766726,0.69058707,2688.4,2687.7,0.93023]
[1643826766727,3.64058707,2688.4,2687.7,0.93023]
[1643826766924,3.64058707,2688.4,2687.5,0.01221983]
[1643826767124,0.00275391,2688.3,2687.5,0.01221983]
[1643826767678,0.00275391,2688.3,2687.3,0.186]
[1643826767867,0.00275391,2688.3,2687.8,0.00493368]
[1643826767868,0.18875391,2688.3,2687.8,0.00493368]
[1643826768669,0.00275391,2688.3,2687.8,0.00493368]
[1643826768867,0.19984319,2688.7,2687.8,0.20520781]
[1643826769067,0.19984319,2688.7,2688.0,0.9300567]
[1643826769268,0.19984319,2688.7,2687.9,0.00493355]
[1643826769568,0.00275391,2688.6,2687.9,0.30493355]
[1643826770169,0.00275391,2688.6,2687.7,0.1859]
[1643826770371,0.00275391,2688.6,2688.1,0.00493338]
[1643826770670,0.76306581,2688.3,2688.1,0.00493338]
[1643826771268,0.76306581,2688.3,2687.6,4.206928]
[1643826771519,0.00275391,2688.2,2688.1,0.00560704]
[1643826772221,1.0,2688.6,2688.1,0.00560704]
[1643826772222,0.206,2688.5,2688.1,0.00560704]
[1643826772624,0.206,2688.5,2687.4,0.186]
[1643826772922,0.94023786,2688.3,2688.0,0.00560709]
[1643826773220,0.186,2688.2,2688.0,0.00560709]
[1643826773420,5.4,2688.1,2688.0,0.00560709]
[1643826773625,5.4,2688.1,2687.4,0.186]
[1643826773626,0.00506122,2687.9,2687.4,0.186]
[1643826773822,1.0,2687.7,2687.4,0.186]
[1643826774024,0.186,2687.6,2687.4,0.186]
[1643826774522,5.00012197,2687.5,2687.4,0.186]
[1643826775173,5.00012197,2687.5,2687.4,0.19161336]
[1643826775871,5.00012197,2687.5,2687.4,0.00561336]
[1643826776070,5.00012197,2687.5,2686.5,4.99138]